fUSD/lending_fUSD_20250119
["ID","MTS","AMOUNT","RATE_DAILY","PERIOD"]
[349588727,1737316232075,-915.97657443,0.0002,5]
[349588728,1737316232084,-981.3,0.00020003,2]
[349588729,1737316232093,-821.44,0.00020015,2]
[349588730,1737316232102,-168.54,0.0002004,2]
[349588731,1737316232111,-150.99,0.00020145,2]
[349588732,1737316232121,-150.0,0.00020178,2]
[349588733,1737316232130,-721.136,0.00020179,2]
[349588734,1737316232140,-548.92261347,0.00020179,2]
[349588735,1737316232149,-915.45462686,0.00020218,2]
[349588736,1737316232158,-16342.0601781,0.00020219,2]
[349588737,1737316232173,-348.89010204,0.00020219,2]
[349588738,1737316232207,-47315.11839657,0.00020219,2]
[349588739,1737316232216,-150.0,0.000205,2]
[349588740,1737316232225,-430.3178249,0.0002071,2]
[349588742,1737316232235,-3000.0,0.0002079,2]
[349588744,1737316232245,-252.454606,0.00020799,2]
[349588746,1737316232254,-252.454606,0.00020803,2]
[349588748,1737316232263,-200.0,0.00020877,2]
[349588750,1737316232272,-1269.0,0.00020887,2]
[349588751,1737316232281,-2017.0,0.00020887,2]
[349588752,1737316232291,-567.0,0.00020887,2]
[349588753,1737316232300,-150.0,0.00020887,2]
[349588755,1737316232309,-636.0,0.00020887,2]
[349588757,1737316232319,-1620.205,0.00020887,2]
[349588759,1737316232328,-2956.53,0.00020887,2]
[349588761,1737316232337,-907.0,0.00020887,2]
[349588763,1737316232346,-1260.0,0.00020887,2]
[349588764,1737316232355,-3981.0,0.00020887,2]
[349588766,1737316232364,-150.0,0.00020887,2]
[349588768,1737316232373,-537.0,0.00020887,2]
[349588770,1737316232382,-500.0,0.00020898,2]
[349588772,1737316232390,-500.0,0.00020898,2]
[349588774,1737316232400,-500.0,0.00020898,2]
[349588776,1737316232409,-500.0,0.00020898,2]
[349588778,1737316232418,-500.0,0.00020898,2]
[349588780,1737316232427,-500.0,0.00020898,2]
[349588782,1737316232436,-500.0,0.00020898,2]
[349588784,1737316232445,-500.0,0.00020898,2]
[349588786,1737316232453,-500.0,0.00020898,2]
[349588788,1737316232463,-500.0,0.00020898,2]
[349588790,1737316232472,-481.30907617,0.00020898,2]
[349588792,1737316232481,-500.0,0.00020898,2]
[349588794,1737316232491,-332.29,0.00020898,2]
[349588796,1737316232501,-500.0,0.00020898,2]
[349588798,1737316232510,-500.0,0.00020898,2]
[349588800,1737316232520,-557.6389377,0.00020898,2]
[349588802,1737316232529,-329.66,0.00020898,2]
[349588804,1737316232538,-500.0,0.00020898,2]
[349588806,1737316232547,-500.0,0.00020898,2]
[349588808,1737316232556,-732.24,0.00020898,2]
[349588810,1737316232565,-500.0,0.00020898,2]
[349588812,1737316232575,-500.0,0.00020898,2]
[349588814,1737316232584,-500.0,0.00020898,2]
[349588816,1737316232593,-500.0,0.00020898,2]
[349588818,1737316232602,-500.0,0.00020898,2]
[349588819,1737316232611,-473.11449528,0.00020898,2]
[349588821,1737316232620,-770.25,0.00020898,2]
[349588823,1737316232629,-238.87223874,0.00020898,2]
[349588825,1737316232638,-484.05,0.00020898,2]
[349588827,1737316232647,-500.0,0.00020898,2]
[349588829,1737316232656,-500.0,0.00020898,2]
[349588831,1737316232665,-500.0,0.00020898,2]
[349588833,1737316232675,-172.42,0.00020898,2]
[349588835,1737316232684,-500.0,0.00020898,2]
[349588837,1737316232693,-709.15,0.00020898,2]
[349588839,1737316232702,-500.0,0.00020898,2]
[349588841,1737316232711,-500.0,0.00020898,2]
[349588843,1737316232721,-500.0,0.00020898,2]
[349588845,1737316232731,-525.9,0.00020898,2]
[349588847,1737316232740,-500.0,0.00020898,2]
[349588849,1737316232749,-204.32059527,0.00020898,2]
[349588851,1737316232758,-500.0,0.00020898,2]
[349588853,1737316232768,-371.18,0.00020898,2]
[349588855,1737316232777,-500.0,0.00020898,2]
[349588857,1737316232786,-511.99,0.00020898,2]
[349588859,1737316232795,-500.0,0.00020898,2]
[349588861,1737316232804,-434.04,0.00020898,2]
[349588863,1737316232813,-500.0,0.00020898,2]
[349588865,1737316232822,-500.0,0.00020898,2]
[349588867,1737316232831,-500.0,0.00020898,2]
[349588869,1737316232841,-704.26,0.00020898,2]
[349588871,1737316232853,-500.0,0.00020898,2]
[349588873,1737316232862,-500.0,0.00020898,2]
[349588875,1737316232871,-500.0,0.00020898,2]
[349588877,1737316232881,-500.0,0.00020898,2]
[349588879,1737316232890,-500.0,0.00020898,2]
[349588881,1737316232899,-500.0,0.00020898,2]
[349588883,1737316232909,-500.0,0.00020898,2]
[349588885,1737316232918,-795.19,0.00020898,2]
[349588887,1737316232928,-500.0,0.00020898,2]
[349588889,1737316232937,-500.0,0.00020898,2]
[349588891,1737316232946,-500.0,0.00020898,2]
[349588893,1737316232956,-500.0,0.00020898,2]
[349588895,1737316232965,-500.0,0.00020898,2]
[349588897,1737316232974,-232.37858586,0.00020899,2]
[349588899,1737316232984,-500.0,0.00020899,2]
[349588901,1737316232993,-500.0,0.00020899,2]
[349588902,1737316233004,-500.0,0.00020899,2]
[349588904,1737316233015,-176.47547056,0.00020899,2]
[349588906,1737316233024,-500.0,0.00020899,2]
[349588909,1737316233034,-500.0,0.00020899,2]
[349588910,1737316233043,-500.0,0.00020899,2]
[349588913,1737316233054,-500.0,0.00020899,2]
[349588914,1737316233063,-500.0,0.00020899,2]
[349588916,1737316233072,-500.0,0.00020899,2]
[349588918,1737316233081,-500.0,0.00020899,2]
[349588920,1737316233091,-500.0,0.00020899,2]
[349588922,1737316233101,-500.0,0.00020899,2]
[349588924,1737316233110,-500.0,0.00020899,2]
[349588926,1737316233119,-500.0,0.00020899,2]
[349588928,1737316233128,-500.0,0.00020899,2]
[349588930,1737316233138,-500.0,0.00020899,2]
[349588932,1737316233148,-500.0,0.00020899,2]
[349588934,1737316233159,-500.0,0.00020899,2]
[349588936,1737316233169,-500.0,0.00020899,2]
[349588938,1737316233179,-500.0,0.00020899,2]
[349588940,1737316233189,-500.0,0.00020899,2]
[349588942,1737316233199,-500.0,0.00020899,2]
[349588944,1737316233209,-500.0,0.00020899,2]
[349588945,1737316233219,-500.0,0.00020899,2]
[349588946,1737316233229,-640.40696026,0.00020899,2]
[349588947,1737316233239,-500.0,0.00020899,2]
[349588948,1737316233249,-506.85197881,0.00020899,2]
[349588949,1737316233259,-500.0,0.00020899,2]
[349588950,1737316233268,-500.0,0.00020899,2]
[349588951,1737316233277,-500.0,0.00020899,2]
[349588952,1737316233287,-500.0,0.00020899,2]
[349588953,1737316233297,-500.0,0.00020899,2]
[349588954,1737316233307,-500.0,0.00020899,2]
[349588955,1737316233316,-500.0,0.00020899,2]
[349588956,1737316233326,-223.39768441,0.00020899,2]
[349588957,1737316233336,-630.3,0.00020899,2]
[349588959,1737316233346,-500.0,0.00020899,2]
[349588961,1737316233356,-500.0,0.00020899,2]
[349588962,1737316233365,-500.0,0.00020899,2]
[349588965,1737316233375,-500.0,0.00020899,2]
[349588967,1737316233386,-500.0,0.00020899,2]
[349588968,1737316233395,-193.60539019,0.00020899,2]
[349588970,1737316233405,-500.0,0.00020899,2]
[349588972,1737316233415,-500.0,0.00020899,2]
[349588974,1737316233425,-500.0,0.00020899,2]
[349588976,1737316233434,-500.0,0.00020899,2]
[349588978,1737316233444,-500.0,0.00020899,2]
[349588980,1737316233454,-500.0,0.00020899,2]
[349588982,1737316233464,-500.0,0.00020899,2]
[349588984,1737316233473,-500.0,0.00020899,2]
[349588986,1737316233483,-500.0,0.00020899,2]
[349588988,1737316233493,-500.0,0.00020899,2]
[349588990,1737316233504,-500.0,0.00020899,2]
[349588992,1737316233514,-500.0,0.00020899,2]
[349588994,1737316233524,-500.0,0.00020899,2]
[349588996,1737316233534,-500.0,0.00020899,2]
[349588998,1737316233543,-500.0,0.00020899,2]
[349589000,1737316233553,-500.0,0.00020899,2]
[349589002,1737316233562,-500.0,0.00020899,2]
[349589004,1737316233572,-500.0,0.00020899,2]
[349589006,1737316233581,-425.18983,0.00020899,2]
[349589008,1737316233591,-500.0,0.00020899,2]
[349589010,1737316233601,-500.0,0.00020899,2]
[349589012,1737316233610,-500.0,0.00020899,2]
[349589014,1737316233621,-624.92785895,0.00020899,2]
[349589016,1737316233630,-500.0,0.00020899,2]
[349589018,1737316233640,-500.0,0.00020899,2]
[349589020,1737316233650,-500.0,0.00020899,2]
[349589022,1737316233659,-500.0,0.00020899,2]
[349589024,1737316233670,-500.0,0.00020899,2]
[349589026,1737316233680,-500.0,0.00020899,2]
[349589028,1737316233692,-500.0,0.00020899,2]
[349589030,1737316233701,-501.48066161,0.00020899,2]
[349589032,1737316233711,-500.0,0.00020899,2]
[349589034,1737316233722,-500.0,0.00020899,2]
[349589036,1737316233732,-500.0,0.00020899,2]
[349589038,1737316233742,-380.65867722,0.000209,2]
[349589040,1737316233752,-252.454606,0.00020912,2]
[349589042,1737316233763,-252.454606,0.00020916,2]
[349589044,1737316233773,-4977.41,0.00020951,2]
[349589046,1737316233783,-5973.0,0.00020959,2]
[349589048,1737316233792,-293.27168736,0.0002099,2]
[349589051,1737316233802,-2975.4108203,0.00020998,2]
[349589052,1737316233812,-1512.9791286,0.00020998,2]
[349589054,1737316233821,-1139.81,0.00020999,2]
[349589057,1737316233831,-951.38,0.00020999,2]
[349589058,1737316233841,-500.0,0.00020999,2]
[349589060,1737316233850,-500.0,0.00020999,2]
[349589062,1737316233860,-500.0,0.00020999,2]
[349589064,1737316233869,-500.0,0.00020999,2]
[349589066,1737316233878,-512.9,0.00020999,2]
[349589068,1737316233888,-606.78,0.00020999,2]
[349589070,1737316233898,-500.0,0.00020999,2]
[349589072,1737316233908,-500.0,0.00020999,2]
[349589074,1737316233917,-500.0,0.00020999,2]
[349589076,1737316233927,-500.0,0.00020999,2]
[349589078,1737316233937,-517.91292307,0.00020999,2]
[349589080,1737316233946,-500.0,0.00020999,2]
[349589082,1737316233956,-500.0,0.00020999,2]
[349589084,1737316233965,-500.0,0.00020999,2]
[349589086,1737316233975,-500.0,0.00020999,2]
[349589088,1737316233984,-500.0,0.00020999,2]
[349589090,1737316233995,-500.0,0.00020999,2]
[349589093,1737316234013,-500.0,0.00020999,2]
[349589094,1737316234023,-500.0,0.00020999,2]
[349589097,1737316234034,-500.0,0.00020999,2]
[349589098,1737316234044,-500.0,0.00020999,2]
[349589101,1737316234055,-500.0,0.00020999,2]
[349589102,1737316234065,-500.0,0.00020999,2]
[349589104,1737316234075,-500.0,0.00020999,2]
[349589106,1737316234084,-500.0,0.00020999,2]
[349589108,1737316234094,-500.0,0.00020999,2]
[349589110,1737316234103,-500.0,0.00020999,2]
[349589112,1737316234113,-500.0,0.00020999,2]
[349589114,1737316234122,-500.0,0.00020999,2]
[349589116,1737316234131,-500.0,0.00020999,2]
[349589118,1737316234141,-500.0,0.00020999,2]
[349589120,1737316234150,-500.0,0.00020999,2]
[349589122,1737316234159,-208.62456856,0.00021,2]
[349589124,1737316234170,-66745.27220328,0.00021,2]
[349589126,1737316234179,-370498.60548991,0.00021,15]
[349589128,1737316234192,-9864.28300002,0.00021,15]
[349589131,1737316234203,-43010.79713,0.00021,15]
[349589133,1737316234215,-320.25724888,0.00021,15]
[349589497,1737316237671,-1092.32,0.00020898,2]
[349589499,1737316237681,-500.0,0.00020898,2]
[349589501,1737316237690,-204.09029699,0.00020999,2]
[349589504,1737316237701,-295.90970301,0.00020999,2]
[349589506,1737316237711,-500.0,0.00020999,2]
[349589508,1737316237720,-280.38808493,0.00020999,2]
[349589510,1737316237730,-501.05505135,0.00020999,2]
[349589512,1737316237739,-262.62851011,0.00020999,2]
[349589514,1737316237748,-436.62713417,0.00020999,2]
[349589516,1737316237758,-500.0,0.00020999,2]
[349589518,1737316237767,-500.0,0.00020999,2]
[349589520,1737316237775,-3998.70057777,0.00021,15]
[349589522,1737316237787,-605.30966957,0.00021,15]
[349589531,1737316237864,-273.02906358,0.00021,15]
[349589534,1737316237875,-93097.71616636,0.00021,15]
[349589685,1737316239801,-337.91385831,0.00020898,2]
[349589686,1737316239812,-573.82614169,0.00020898,2]
[349589687,1737316239821,-99.4438583,0.000209,2]
[349589688,1737316239832,-103.3691938,0.000209,2]
[349589689,1737316239842,-265.1610269,0.00021,15]
[349589690,1737316239853,-335.342,0.00021,15]
[349589691,1737316239927,-211917.02465847,0.00021,15]
[349589692,1737316239986,-13419.04768263,0.00021,15]
[349589693,1737316240016,-10557.072,0.00021,15]
[349589694,1737316240095,-2638.374884,0.00021,15]
[349589695,1737316240106,-2857.5,0.00021,15]
[349589696,1737316240117,-3734.98271433,0.00021,15]
[349589697,1737316240266,-3110.84296923,0.00021,15]
[349589698,1737316240277,-3808.40815999,0.00021,15]
[349589699,1737316240289,-1470.64912493,0.00021,15]
[349589709,1737316242830,-701.73,0.00020999,2]
[349589710,1737316242840,-153.75955097,0.00021,15]
[349589711,1737316242974,-2520.0795068,0.00021,15]
[349589712,1737316243068,-811.5400475,0.00021,15]
[349589713,1737316243079,-5214.72011539,0.00021,15]
[349589728,1737316245700,-500.0,0.00020898,2]
[349589729,1737316245710,-1055394.0285913,0.00021,15]
[349589730,1737316245722,-797.24999764,0.00021,15]
[349589731,1737316245763,-638.42,0.00021,15]
[349589732,1737316245775,-2108.1282992,0.00021,15]
[349589733,1737316245829,-2649.03118856,0.00021,15]
[349589734,1737316245901,-556.78,0.00020999,2]
[349589735,1737316245911,-116179.87190111,0.00021,15]
[349589736,1737316245923,-37037.42699999,0.00021,15]
[349589737,1737316245958,-1369.0519802,0.00021,15]
[349589738,1737316264929,292022.71,0.00023,120]
[349589740,1737316423765,263.92,0.00010137,2]
[349589741,1737316628917,-550.0,0.00015,2]
[349589742,1737316930799,2030.32,0.00019181,30]
[349589744,1737317121205,605.35537982,0.00022,120]
[349589750,1737317431807,-165.43,0.00015029,2]
[349589751,1737317431817,-1951.37,0.00015762,2]
[349589752,1737317431828,-2006.14815178,0.00015762,2]
[349589753,1737317431837,-286.28430123,0.00015862,2]
[349589754,1737317431862,-15.12516248,0.00015862,2]
[349589755,1737317431872,-1969.55522517,0.00015962,2]
[349589756,1737317431881,-300.0,0.00016437,2]
[349589757,1737317431891,-150.0,0.00016438,2]
[349589758,1737317431900,-13395.42081503,0.00016438,2]
[349589759,1737317431910,-167.07,0.00016712,2]
[349589760,1737317431919,-263.92,0.00016813,2]
[349589761,1737317431928,-600.0,0.00017,2]
[349589762,1737317431937,-250.0,0.00017123,2]
[349589763,1737317431947,-301.4094637,0.00017375,2]
[349589764,1737317431956,-900.44,0.00017469,2]
[349589765,1737317431966,-350.0,0.00017808,2]
[349589766,1737317431975,-5115.48905634,0.00018,2]
[349589767,1737317431984,-558.23,0.0001831,2]
[349589768,1737317431994,-150.0,0.00018333,2]
[349589769,1737317432003,-210.56214237,0.00018493,2]
[349589770,1737317432012,-862.14,0.00018524,2]
[349589771,1737317432021,-200.0,0.00018618,2]
[349589772,1737317432030,-546.62,0.00018632,2]
[349589773,1737317432040,-250.0,0.00018646,2]
[349589774,1737317432049,-177.675,0.00018698,2]
[349589775,1737317432059,-1138.482,0.00018698,2]
[349589776,1737317432068,-221.09,0.00018749,2]
[349589777,1737317432077,-506.38359637,0.000188,2]
[349589778,1737317432087,-150.0,0.00018834,2]
[349589779,1737317432096,-20865.88344341,0.00018835,2]
[349589780,1737317432109,-3034.11655659,0.00018835,2]
[349589781,1737317432118,-301.4094637,0.00018887,2]
[349589782,1737317432127,-558.23,0.00018987,2]
[349589783,1737317432137,-16768.0,0.0001899,2]
[349589784,1737317432146,-650.0,0.00019,2]
[349589785,1737317432155,-250.0,0.0001902,2]
[349589786,1737317432165,-540.82,0.00019058,2]
[349589787,1737317432175,-187.58,0.00019134,2]
[349589788,1737317432186,-2135.71363494,0.00019178,7]
[349589789,1737317432196,-330.0,0.00019342,2]
[349589790,1737317432205,-200.0,0.00019374,2]
[349589791,1737317432216,-1500.0,0.00019422,2]
[349589792,1737317432226,-1000.0,0.00019512,2]
[349589793,1737317432236,-151.0,0.00019562,2]
[349589794,1737317432246,-558.23,0.00019665,2]
[349589795,1737317432255,-1940.73,0.00019707,2]
[349589796,1737317432263,-900.44,0.00019733,2]
[349589797,1737317432273,-506.38359634,0.00019833,2]
[349589798,1737317432282,-250.0,0.00019858,2]
[349589799,1737317432292,-207.37780284,0.000199,2]
[349589800,1737317432301,-305.81,0.0001996,2]
[349589801,1737317432310,-207.37780281,0.000201,2]
[349589802,1737317432319,-250.0,0.00020179,2]
[349589803,1737317432328,-207.37780281,0.000203,2]
[349589804,1737317432338,-558.23,0.00020342,2]
[349589805,1737317432347,-200.0,0.00020428,2]
[349589806,1737317432356,-207.37780281,0.000205,2]
[349589807,1737317432366,-226.0,0.00020658,2]
[349589808,1737317432375,-207.37780281,0.000207,2]
[349589809,1737317432388,-901.97558733,0.00020787,2]
[349589810,1737317432398,-150.0,0.000208,2]
[349589812,1737317432407,-20.53921402,0.00020803,2]
[349589815,1737317432428,-180.67234541,0.00020803,2]
[349589817,1737317432437,-901.97558733,0.00020813,2]
[349589819,1737317432447,-4558.00105986,0.00020818,2]
[349589821,1737317432456,-3878.56034062,0.00020823,2]
[349589823,1737317432469,-901.97558733,0.00020832,2]
[349589825,1737317432479,-3878.56034062,0.0002084,2]
[349589827,1737317432489,-3878.56034062,0.00020846,2]
[349589828,1737317432499,-901.97558733,0.00020847,2]
[349589830,1737317432508,-4558.00105986,0.00020856,2]
[349589832,1737317432518,-506.38359634,0.00020867,2]
[349589834,1737317432529,-201.21155943,0.00020883,2]
[349589836,1737317432538,-4558.00105986,0.00020887,2]
[349589838,1737317432548,-150.0,0.00020888,2]
[349589840,1737317432558,-468.585,0.00020888,2]
[349589842,1737317432568,-150.0,0.00020888,2]
[349589844,1737317432578,-500.0,0.00020898,2]
[349589846,1737317432588,-500.0,0.00020898,2]
[349589848,1737317432598,-500.0,0.00020898,2]
[349589850,1737317432608,-500.0,0.00020898,2]
[349589852,1737317432618,-500.0,0.00020898,2]
[349589854,1737317432627,-500.0,0.00020898,2]
[349589856,1737317432637,-500.0,0.00020898,2]
[349589858,1737317432646,-500.0,0.00020898,2]
[349589860,1737317432655,-500.0,0.00020898,2]
[349589862,1737317432664,-500.0,0.00020898,2]
[349589864,1737317432673,-500.0,0.00020898,2]
[349589866,1737317432683,-500.0,0.00020898,2]
[349589868,1737317432693,-500.0,0.00020898,2]
[349589870,1737317432703,-500.0,0.00020898,2]
[349589871,1737317432714,-500.0,0.00020898,2]
[349589873,1737317432723,-500.0,0.00020898,2]
[349589875,1737317432733,-500.0,0.00020898,2]
[349589877,1737317432742,-500.0,0.00020898,2]
[349589879,1737317432753,-500.0,0.00020898,2]
[349589881,1737317432763,-500.0,0.00020898,2]
[349589883,1737317432773,-500.0,0.00020898,2]
[349589885,1737317432782,-501.98874376,0.00020898,2]
[349589887,1737317432791,-500.0,0.00020898,2]
[349589889,1737317432800,-500.0,0.00020898,2]
[349589891,1737317432810,-500.0,0.00020898,2]
[349589893,1737317432826,-500.0,0.00020898,2]
[349589895,1737317432836,-500.0,0.00020898,2]
[349589897,1737317432851,-500.0,0.00020898,2]
[349589899,1737317432868,-503.37489412,0.00020898,2]
[349589901,1737317432877,-500.0,0.00020898,2]
[349589903,1737317432886,-500.0,0.00020898,2]
[349589905,1737317432895,-500.0,0.00020898,2]
[349589907,1737317432905,-500.0,0.00020898,2]
[349589909,1737317432914,-500.0,0.00020898,2]
[349589911,1737317432923,-500.0,0.00020898,2]
[349589913,1737317432933,-504.95156362,0.00020898,2]
[349589915,1737317432942,-500.0,0.00020898,2]
[349589917,1737317432952,-501.95475833,0.00020898,2]
[349589919,1737317432961,-558.31952459,0.00020898,2]
[349589921,1737317432971,-500.0,0.00020898,2]
[349589923,1737317432980,-500.0,0.00020898,2]
[349589924,1737317432989,-500.0,0.00020898,2]
[349589926,1737317432998,-500.0,0.00020898,2]
[349589928,1737317433007,-500.0,0.00020898,2]
[349589930,1737317433018,-500.0,0.00020898,2]
[349589932,1737317433028,-500.0,0.00020898,2]
[349589934,1737317433038,-500.0,0.00020898,2]
[349589936,1737317433048,-500.0,0.00020898,2]
[349589938,1737317433058,-500.0,0.00020898,2]
[349589940,1737317433067,-500.0,0.00020898,2]
[349589942,1737317433077,-500.0,0.00020898,2]
[349589944,1737317433087,-500.0,0.00020898,2]
[349589946,1737317433098,-500.0,0.00020898,2]
[349589948,1737317433108,-709.04,0.00020898,2]
[349589950,1737317433118,-500.0,0.00020898,2]
[349589952,1737317433128,-500.0,0.00020898,2]
[349589954,1737317433137,-3300.72993606,0.00020898,2]
[349589956,1737317433146,-195.81587646,0.00020898,2]
[349589958,1737317433157,-5900.5375,0.00020898,2]
[349589960,1737317433167,-342.59280948,0.000209,2]
[349589962,1737317433176,-823.66490982,0.000209,2]
[349589964,1737317433186,-207.37780281,0.000209,2]
[349589966,1737317433196,-201.21155943,0.00020906,2]
[349589968,1737317433205,-4558.00105986,0.00020922,2]
[349589970,1737317433216,-3208.43665204,0.00020925,2]
[349589985,1737317433359,-670.12368858,0.00020925,2]
[349589987,1737317433369,-901.97558733,0.00020931,2]
[349589988,1737317433378,-201.21155943,0.00020931,2]
[349589989,1737317433392,-201.21155943,0.00020936,2]
[349589990,1737317433401,-2097.5010041,0.0002094,2]
[349589991,1737317433413,-1781.05933652,0.0002094,2]
[349589992,1737317433422,-4558.00105986,0.00020947,2]
[349589993,1737317433431,-823.66490974,0.00020971,2]
[349589994,1737317433440,-1272.8434996,0.00020995,2]
[349589995,1737317433449,-1070.0908459,0.00020997,2]
[349589996,1737317433459,-2104.4308026,0.00020997,2]
[349589997,1737317433469,-500.0,0.00020998,2]
[349589998,1737317433479,-500.0,0.00020998,2]
[349589999,1737317433488,-500.0,0.00020998,2]
[349590000,1737317433497,-500.0,0.00020998,2]
[349590001,1737317433506,-500.0,0.00020998,2]
[349590002,1737317433515,-828.39,0.00020998,2]
[349590004,1737317433525,-500.0,0.00020998,2]
[349590006,1737317433534,-500.0,0.00020998,2]
[349590008,1737317433545,-500.0,0.00020998,2]
[349590010,1737317433555,-500.0,0.00020998,2]
[349590012,1737317433564,-500.0,0.00020998,2]
[349590014,1737317433573,-500.0,0.00020998,2]
[349590016,1737317433584,-500.0,0.00020998,2]
[349590017,1737317433594,-500.0,0.00020998,2]
[349590019,1737317433603,-500.0,0.00020998,2]
[349590021,1737317433614,-500.0,0.00020998,2]
[349590024,1737317433624,-500.0,0.00020998,2]
[349590026,1737317433634,-500.0,0.00020998,2]
[349590028,1737317433644,-500.0,0.00020998,2]
[349590030,1737317433654,-500.0,0.00020998,2]
[349590032,1737317433663,-500.0,0.00020998,2]
[349590033,1737317433672,-500.0,0.00020998,2]
[349590035,1737317433683,-500.7753573,0.00020998,2]
[349590037,1737317433692,-500.0,0.00020998,2]
[349590040,1737317433702,-500.0,0.00020998,2]
[349590042,1737317433711,-500.0,0.00020998,2]
[349590044,1737317433721,-500.0,0.00020998,2]
[349590046,1737317433730,-500.0,0.00020998,2]
[349590047,1737317433739,-500.0,0.00020998,2]
[349590049,1737317433748,-500.0,0.00020998,2]
[349590051,1737317433758,-500.0,0.00020998,2]
[349590053,1737317433767,-500.0,0.00020998,2]
[349590055,1737317433778,-500.0,0.00020998,2]
[349590073,1737317433788,-500.0,0.00020998,2]
[349590075,1737317433958,-500.0,0.00020998,2]
[349590077,1737317433970,-500.94699344,0.00020998,2]
[349590080,1737317433980,-500.0,0.00020998,2]
[349590082,1737317433990,-500.0,0.00020998,2]
[349590084,1737317434000,-500.0,0.00020998,2]
[349590086,1737317434011,-500.0,0.00020998,2]
[349590088,1737317434021,-500.0,0.00020998,2]
[349590090,1737317434030,-500.0,0.00020998,2]
[349590092,1737317434040,-500.0,0.00020998,2]
[349590094,1737317434049,-500.0,0.00020998,2]
[349590096,1737317434060,-500.0,0.00020998,2]
[349590098,1737317434070,-432.07120367,0.00020998,2]
[349590100,1737317434081,-500.0,0.00020998,2]
[349590102,1737317434090,-391.25837368,0.00020998,2]
[349590104,1737317434100,-500.0,0.00020998,2]
[349590106,1737317434110,-500.0,0.00020998,2]
[349590108,1737317434120,-500.0,0.00020998,2]
[349590110,1737317434130,-500.0,0.00020998,2]
[349590112,1737317434139,-500.0,0.00020998,2]
[349590114,1737317434149,-500.0,0.00020998,2]
[349590116,1737317434159,-500.0,0.00020998,2]
[349590118,1737317434168,-500.0,0.00020998,2]
[349590119,1737317434178,-500.0,0.00020998,2]
[349590122,1737317434188,-500.0,0.00020998,2]
[349590123,1737317434198,-500.0,0.00020998,2]
[349590124,1737317434208,-406.25393031,0.00020998,2]
[349590125,1737317434220,-500.0,0.00020998,2]
[349590126,1737317434230,-500.0,0.00020998,2]
[349590127,1737317434240,-500.0,0.00020998,2]
[349590128,1737317434250,-500.0,0.00020998,2]
[349590129,1737317434261,-500.0,0.00020998,2]
[349590130,1737317434271,-500.0,0.00020998,2]
[349590131,1737317434282,-500.0,0.00020998,2]
[349590132,1737317434293,-500.0,0.00020998,2]
[349590133,1737317434303,-500.0,0.00020998,2]
[349590134,1737317434316,-500.0,0.00020998,2]
[349590135,1737317434328,-500.0,0.00020998,2]
[349590136,1737317434339,-500.0,0.00020998,2]
[349590137,1737317434350,-171.61969154,0.00020998,2]
[349590138,1737317434361,-500.0,0.00020998,2]
[349590139,1737317434371,-500.0,0.00020998,2]
[349590140,1737317434383,-500.0,0.00020998,2]
[349590141,1737317434397,-500.0,0.00020998,2]